fUST/lending_fUST_20250117
["ID","MTS","AMOUNT","RATE_DAILY","PERIOD"]
[349228233,1737047447145,-501.37646628,0.00019588,3]
[349228234,1737047447155,-500.0,0.00019588,3]
[349228235,1737047447164,-503.88780394,0.00019588,3]
[349228236,1737047447173,-500.87642174,0.00019588,3]
[349228237,1737047447182,-500.0,0.00019588,3]
[349228238,1737047447192,-500.0,0.00019588,3]
[349228239,1737047447202,-202.82981338,0.00019588,3]
[349228240,1737047447211,-500.0,0.00019588,3]
[349228241,1737047447221,-500.35975401,0.00019588,3]
[349228242,1737047447231,-500.0,0.00019588,3]
[349228243,1737047447241,-502.63599381,0.00019588,3]
[349228244,1737047447250,-500.0,0.00019588,3]
[349228245,1737047447260,-500.0,0.00019588,3]
[349228246,1737047447270,-500.0,0.00019588,3]
[349228247,1737047447279,-511.15188596,0.00019588,3]
[349228248,1737047447289,-500.0,0.00019588,3]
[349228249,1737047447299,-500.0,0.00019588,3]
[349228250,1737047447308,-502.24114023,0.00019588,3]
[349228251,1737047447319,-241.95821457,0.00019588,3]
[349228252,1737047447329,-500.0,0.00019588,2]
[349228253,1737047447338,-501.24608882,0.00019588,3]
[349228254,1737047447350,-645.3620658,0.00019588,3]
[349228255,1737047447359,-500.0,0.00019588,3]
[349228256,1737047447368,-502.36438354,0.00019588,3]
[349228257,1737047447378,-500.0,0.00019588,3]
[349228258,1737047447516,-500.0,0.00019588,3]
[349228259,1737047447526,-500.0,0.00019588,3]
[349228260,1737047447536,-501.81953979,0.00019588,3]
[349228261,1737047447546,-500.0,0.00019588,2]
[349228262,1737047447557,-500.0,0.00019588,3]
[349228263,1737047447567,-500.0,0.00019588,3]
[349228264,1737047447577,-500.0,0.00019588,3]
[349228265,1737047447586,-500.0,0.00019588,3]
[349228266,1737047447596,-500.0,0.00019588,3]
[349228267,1737047447605,-500.0,0.00019588,3]
[349228268,1737047447615,-500.0,0.00019588,3]
[349228269,1737047447624,-501.13488191,0.00019588,3]
[349228270,1737047447634,-500.0,0.00019588,3]
[349228271,1737047447643,-500.0,0.00019588,3]
[349228272,1737047447652,-500.0,0.00019588,3]
[349228273,1737047447662,-500.0,0.00019588,3]
[349228274,1737047447672,-500.0,0.00019588,3]
[349228275,1737047447682,-1619.54,0.00019588,3]
[349228276,1737047447692,-500.79171361,0.00019588,3]
[349228277,1737047447701,-500.0,0.00019588,3]
[349228278,1737047447711,-500.0,0.00019589,3]
[349228279,1737047447721,-410.93,0.00019589,3]
[349228280,1737047447731,-1267.40157552,0.00019682,2]
[349228281,1737047447741,-500.0,0.0001971,3]
[349228282,1737047447750,-843.28,0.00019712,3]
[349228283,1737047447760,-500.0,0.00019725,3]
[349228284,1737047447770,-500.0,0.00019725,2]
[349228285,1737047447779,-1619.54,0.00019725,3]
[349228286,1737047447788,-500.0,0.00019725,3]
[349228287,1737047447797,-500.0,0.00019726,3]
[349228288,1737047447807,-500.0,0.00019847,3]
[349228289,1737047447819,-843.28,0.00019849,3]
[349228290,1737047447829,-500.0,0.00019862,2]
[349228291,1737047447838,-1619.54,0.00019862,3]
[349228292,1737047447847,-300.7687243,0.00019862,3]
[349228293,1737047447856,-153.027,0.00019863,2]
[349228294,1737047447866,-500.0,0.00019863,3]
[349228295,1737047447875,-538.25,0.000199,2]
[349228296,1737047447884,-159.22671684,0.00019901,2]
[349228297,1737047447894,-500.0,0.00019973,2]
[349228298,1737047447906,-230.10508302,0.00019973,2]
[349228299,1737047447915,-151.27622548,0.00019973,2]
[349228300,1737047447925,-243.7682603,0.00019973,2]
[349228301,1737047447934,-265.48803719,0.00019973,2]
[349228302,1737047447943,-500.0,0.00019984,3]
[349228303,1737047447953,-843.28,0.00019986,3]
[349228304,1737047447963,-8933.36451414,0.00019989,2]
[349228305,1737047447973,-192.89693223,0.00019998,2]
[349228306,1737047447983,-500.0,0.00019998,2]
[349228307,1737047447993,-500.0,0.00019998,2]
[349228308,1737047448002,-500.0,0.00019998,2]
[349228309,1737047448012,-500.0,0.00019998,2]
[349228310,1737047448021,-500.0,0.00019998,2]
[349228311,1737047448031,-500.0,0.00019998,2]
[349228312,1737047448040,-500.0,0.00019998,2]
[349228313,1737047448050,-315.0,0.00019998,2]
[349228314,1737047448061,-500.0,0.00019998,2]
[349228315,1737047448072,-620.0,0.00019998,2]
[349228316,1737047448082,-500.0,0.00019998,2]
[349228317,1737047448092,-500.0,0.00019998,2]
[349228318,1737047448101,-500.0,0.00019998,2]
[349228319,1737047448112,-500.0,0.00019998,2]
[349228320,1737047448121,-500.0,0.00019998,2]
[349228321,1737047448130,-500.0,0.00019998,2]
[349228322,1737047448140,-500.0,0.00019998,2]
[349228323,1737047448150,-500.0,0.00019998,2]
[349228324,1737047448161,-500.0,0.00019998,2]
[349228325,1737047448171,-500.0,0.00019998,2]
[349228326,1737047448180,-500.0,0.00019998,2]
[349228327,1737047448190,-500.0,0.00019998,2]
[349228328,1737047448200,-500.0,0.00019998,2]
[349228329,1737047448209,-500.0,0.00019998,2]
[349228330,1737047448219,-500.0,0.00019998,2]
[349228331,1737047448228,-500.0,0.00019998,2]
[349228332,1737047448237,-500.0,0.00019998,2]
[349228333,1737047448246,-165.37468559,0.00019998,2]
[349228334,1737047448256,-500.0,0.00019998,2]
[349228335,1737047448265,-500.0,0.00019998,2]
[349228336,1737047448275,-500.0,0.00019998,2]
[349228337,1737047448284,-500.0,0.00019998,2]
[349228338,1737047448294,-500.0,0.00019998,2]
[349228339,1737047448304,-544.06778346,0.00019998,2]
[349228340,1737047448316,-500.0,0.00019998,2]
[349228341,1737047448326,-500.0,0.00019998,2]
[349228342,1737047448336,-500.0,0.00019998,2]
[349228343,1737047448345,-617.5,0.00019998,2]
[349228344,1737047448355,-500.0,0.00019998,2]
[349228345,1737047448365,-500.0,0.00019998,2]
[349228346,1737047448375,-500.0,0.00019998,2]
[349228347,1737047448385,-500.0,0.00019998,2]
[349228348,1737047448395,-500.0,0.00019998,2]
[349228349,1737047448405,-500.0,0.00019998,2]
[349228350,1737047448415,-500.0,0.00019998,2]
[349228351,1737047448425,-500.0,0.00019998,2]
[349228352,1737047448434,-500.0,0.00019998,2]
[349228353,1737047448444,-500.0,0.00019998,2]
[349228354,1737047448454,-500.0,0.00019998,2]
[349228355,1737047448463,-294.64131147,0.00019998,2]
[349228356,1737047448473,-500.0,0.00019998,2]
[349228357,1737047448483,-451.23222415,0.00019998,2]
[349228358,1737047448493,-267.2199489,0.00019998,2]
[349228359,1737047448503,-500.0,0.00019998,2]
[349228360,1737047448512,-500.0,0.00019998,2]
[349228361,1737047448522,-500.0,0.00019998,2]
[349228362,1737047448531,-500.0,0.00019998,2]
[349228363,1737047448540,-500.0,0.00019998,2]
[349228364,1737047448551,-500.0,0.00019998,2]
[349228365,1737047448560,-500.0,0.00019998,2]
[349228366,1737047448572,-500.0,0.00019998,2]
[349228367,1737047448582,-500.0,0.00019998,2]
[349228368,1737047448591,-500.0,0.00019998,2]
[349228369,1737047448602,-500.0,0.00019998,2]
[349228370,1737047448612,-500.0,0.00019998,2]
[349228371,1737047448622,-500.0,0.00019998,2]
[349228372,1737047448631,-500.0,0.00019998,2]
[349228373,1737047448641,-500.0,0.00019998,2]
[349228374,1737047448652,-500.0,0.00019998,2]
[349228375,1737047448661,-500.0,0.00019998,2]
[349228376,1737047448671,-500.0,0.00019998,2]
[349228377,1737047448680,-500.0,0.00019998,2]
[349228378,1737047448690,-500.0,0.00019998,2]
[349228379,1737047448699,-500.0,0.00019998,2]
[349228380,1737047448708,-500.0,0.00019998,2]
[349228381,1737047448718,-500.0,0.00019998,2]
[349228382,1737047448732,-500.0,0.00019998,2]
[349228383,1737047448745,-500.0,0.00019998,2]
[349228384,1737047448758,-500.0,0.00019998,2]
[349228385,1737047448771,-500.0,0.00019998,2]
[349228386,1737047448784,-500.0,0.00019998,2]
[349228387,1737047448795,-500.0,0.00019998,2]
[349228388,1737047448805,-500.0,0.00019998,2]
[349228389,1737047448819,-500.0,0.00019998,2]
[349228390,1737047448832,-500.0,0.00019998,2]
[349228391,1737047448844,-500.0,0.00019998,2]
[349228392,1737047448856,-500.0,0.00019998,2]
[349228393,1737047448868,-500.0,0.00019998,2]
[349228394,1737047448880,-500.0,0.00019998,2]
[349228395,1737047448891,-500.0,0.00019998,2]
[349228396,1737047448904,-500.0,0.00019998,2]
[349228397,1737047448916,-500.0,0.00019998,2]
[349228398,1737047448928,-500.0,0.00019998,2]
[349228399,1737047448941,-500.0,0.00019998,2]
[349228400,1737047448954,-500.0,0.00019998,2]
[349228401,1737047448965,-500.0,0.00019998,2]
[349228402,1737047448977,-500.0,0.00019998,2]
[349228403,1737047448988,-500.0,0.00019998,2]
[349228404,1737047448999,-500.0,0.00019998,2]
[349228405,1737047449011,-500.0,0.00019998,2]
[349228406,1737047449022,-500.0,0.00019998,2]
[349228407,1737047449034,-500.0,0.00019998,2]
[349228408,1737047449047,-500.0,0.00019998,2]
[349228409,1737047449059,-500.0,0.00019998,2]
[349228410,1737047449075,-500.0,0.00019998,2]
[349228411,1737047449087,-500.0,0.00019998,2]
[349228412,1737047449098,-500.0,0.00019998,2]
[349228413,1737047449108,-500.0,0.00019998,2]
[349228414,1737047449119,-500.0,0.00019998,2]
[349228415,1737047449130,-500.0,0.00019998,2]
[349228416,1737047449143,-500.0,0.00019998,2]
[349228417,1737047449154,-500.0,0.00019998,2]
[349228418,1737047449166,-500.0,0.00019998,2]
[349228419,1737047449178,-279.27507742,0.00019998,2]
[349228420,1737047449188,-500.0,0.00019998,2]
[349228421,1737047449201,-605.3524811,0.00019998,2]
[349228422,1737047449212,-500.0,0.00019998,2]
[349228423,1737047449224,-500.0,0.00019998,2]
[349228424,1737047449237,-500.0,0.00019998,2]
[349228425,1737047449250,-500.0,0.00019998,2]
[349228426,1737047449262,-500.0,0.00019998,2]
[349228427,1737047449274,-500.0,0.00019998,2]
[349228428,1737047449286,-500.0,0.00019998,2]
[349228429,1737047449298,-500.0,0.00019998,2]
[349228430,1737047449308,-500.0,0.00019998,2]
[349228431,1737047449319,-491.67730782,0.00019998,2]
[349228432,1737047449330,-500.0,0.00019998,2]
[349228433,1737047449340,-500.0,0.00019998,2]
[349228434,1737047449351,-500.0,0.00019998,2]
[349228435,1737047449362,-500.0,0.00019998,2]
[349228436,1737047449373,-151.0,0.00019999,2]
[349228437,1737047449384,-151.0,0.00019999,2]
[349228438,1737047449397,-500.0,0.00019999,2]
[349228439,1737047449409,-151.0,0.00019999,2]
[349228440,1737047449421,-173.798688,0.00019999,2]
[349228441,1737047449432,-2671.011617,0.00019999,2]
[349228442,1737047449442,-2671.011617,0.00019999,2]
[349228443,1737047449453,-151.0,0.00019999,2]
[349228444,1737047449464,-151.0,0.00019999,2]
[349228445,1737047449475,-1619.54,0.00019999,3]
[349228446,1737047449487,-428.530664,0.00019999,2]
[349228447,1737047449499,-428.530664,0.00019999,2]
[349228448,1737047449510,-151.0,0.00019999,2]
[349228449,1737047449520,-1251.959867,0.00019999,2]
[349228450,1737047449531,-1251.959867,0.00019999,2]
[349228451,1737047449542,-241.501214,0.00019999,2]
[349228452,1737047449552,-241.501214,0.00019999,2]
[349228453,1737047449565,-12793.38197689,0.0002,5]
[349228454,1737047449575,-1865.06430163,0.0002,5]
[349228455,1737047449586,-7532.35397384,0.0002,5]
[349228456,1737047449692,-976.0,0.0002,5]
[349228461,1737047751215,170.220164,0.00013973,2]
[349228467,1737048314647,210.0,0.000155,2]
[349228482,1737048525385,243.28425753,0.00025,120]
[349228564,1737048631988,-3439.80119047,0.00018,2]
[349228572,1737048632052,-640.59011304,0.00018,2]
[349228574,1737048632061,-500.51817816,0.00018047,2]
[349228581,1737048632113,-439.565,0.00018047,2]
[349228583,1737048632126,-1394.59671024,0.00018047,2]
[349228585,1737048632135,-300.0,0.00018523,2]
[349228587,1737048632144,-300.0,0.0001871,2]
[349228589,1737048632154,-22859.0616257,0.00018711,2]
[349228591,1737048632163,-1205.36597554,0.000189,2]
[349228593,1737048632173,-159.22671684,0.000189,2]
[349228595,1737048632182,-371.203,0.00019,2]
[349228597,1737048632192,-500.0,0.00019178,2]
[349228599,1737048632201,-1349.62,0.00019178,2]
[349228602,1737048632211,-500.0,0.00019178,2]
[349228604,1737048632222,-173.340316,0.00019178,2]
[349228606,1737048632231,-11294.5531873,0.0001928,2]
[349228607,1737048632242,-500.0,0.00019315,2]
[349228609,1737048632252,-1349.62,0.00019315,3]
[349228612,1737048632261,-500.0,0.00019315,3]
[349228614,1737048632271,-152.83,0.00019315,2]
[349228616,1737048632281,-192.474,0.00019421,2]
[349228618,1737048632290,-153.473,0.00019421,2]
[349228619,1737048632299,-500.0,0.00019451,3]
[349228621,1737048632309,-500.0,0.00019452,2]
[349228624,1737048632319,-1349.62,0.00019452,3]
[349228626,1737048632329,-500.0,0.00019452,3]
[349228628,1737048632339,-6810.15,0.000195,2]
[349228630,1737048632350,-11294.5531873,0.00019572,2]
[349228632,1737048632359,-500.0,0.00019589,2]
[349228635,1737048632370,-1349.62,0.00019589,3]
[349228636,1737048632380,-500.0,0.00019589,3]
[349228638,1737048632390,-500.0,0.00019726,2]
[349228641,1737048632400,-1349.62,0.00019726,3]
[349228643,1737048632410,-500.0,0.00019726,3]
[349228645,1737048632419,-632.46,0.00019852,3]
[349228647,1737048632429,-385.12828622,0.00019862,2]
[349228649,1737048632441,-500.0,0.00019863,2]
[349228651,1737048632451,-1349.62,0.00019863,3]
[349228653,1737048632461,-500.0,0.00019863,3]
[349228655,1737048632470,-11294.5531873,0.00019889,2]
[349228656,1737048632479,-484.43,0.000199,2]
[349228658,1737048632488,-272.2953094,0.000199,2]
[349228660,1737048632498,-4326.26607109,0.000199,2]
[349228661,1737048632507,-500.0,0.00019934,3]
[349228663,1737048632519,-500.0,0.00019934,2]
[349228665,1737048632528,-632.46,0.00019989,3]
[349228667,1737048632538,-500.0,0.00019999,2]
[349228668,1737048632547,-163992.11318299,0.0002,5]
[349228669,1737048632557,-151.0,0.0002,2]
[349228671,1737048632567,-1000.0,0.0002,20]
[349228673,1737048632576,-1000.0,0.0002,2]
[349228675,1737048632585,-4221.0,0.0002,2]
[349228677,1737048632594,-160.0,0.0002,2]
[349228679,1737048632607,-328.0,0.0002,8]
[349228681,1737048632616,-151.0,0.0002,2]
[349228683,1737048632625,-151.0,0.0002,2]
[349228685,1737048632635,-500.0,0.0002,2]
[349228687,1737048632644,-1349.62,0.0002,3]
[349228689,1737048632653,-210.77632839,0.0002,20]
[349228691,1737048632662,-500.0,0.0002,3]
[349228693,1737048632671,-4326.26607089,0.00020038,2]
[349228695,1737048632679,-500.0,0.00020071,3]
[349228697,1737048632688,-632.46,0.00020126,3]
[349228699,1737048632698,-459.43,0.00020136,2]
[349228700,1737048632706,-1349.62,0.00020136,3]
[349228702,1737048632716,-500.0,0.00020136,3]
[349228704,1737048632725,-4326.26607089,0.00020176,2]
[349228706,1737048632734,-500.0,0.00020208,3]
[349228707,1737048632743,-632.46,0.00020263,3]
[349228709,1737048632752,-1349.62,0.00020273,3]
[349228711,1737048632761,-500.0,0.00020273,3]
[349228712,1737048632771,-4326.26607089,0.00020314,2]
[349228713,1737048632780,-500.0,0.00020345,3]
[349228714,1737048632789,-632.46,0.000204,3]
[349228715,1737048632798,-420.0,0.000204,2]
[349228716,1737048632807,-1349.62,0.0002041,3]
[349228717,1737048632816,-500.0,0.0002041,3]
[349228718,1737048632826,-4326.26607089,0.00020452,2]
[349228719,1737048632835,-159.22671684,0.00020462,2]
[349228720,1737048632845,-500.0,0.00020482,3]
[349228722,1737048632858,-386.738172,0.00020521,2]
[349228724,1737048632867,-151.0,0.00020536,2]
[349228726,1737048632876,-151.9016,0.00020536,2]
[349228728,1737048632885,-632.46,0.00020537,3]
[349228730,1737048632894,-150.02,0.00020547,2]
[349228732,1737048632912,-150.02,0.00020547,2]
[349228735,1737048632922,-150.02,0.00020547,2]
[349228737,1737048632931,-500.0,0.00020547,2]
[349228738,1737048632941,-500.0,0.00020547,2]
[349228740,1737048632951,-150.02,0.00020547,2]
[349228741,1737048632963,-1349.62,0.00020547,3]
[349228742,1737048632973,-500.0,0.00020547,2]
[349228743,1737048632982,-299.86,0.00020547,2]
[349228744,1737048632993,-150.02,0.00020547,2]
[349228745,1737048633003,-150.02,0.00020547,2]
[349228746,1737048633013,-150.02,0.00020547,2]
[349228747,1737048633023,-500.0,0.00020547,3]
[349228748,1737048633034,-151.328184,0.00020548,2]
[349228749,1737048633045,-4326.26607089,0.0002059,2]
[349228750,1737048633056,-151.0,0.0002059,2]
[349228751,1737048633066,-151.0,0.0002059,2]
[349228752,1737048633079,-386.738172,0.00020603,2]
[349228753,1737048633089,-500.0,0.00020619,3]
[349228754,1737048633103,-151.0,0.0002062,2]
[349228755,1737048633113,-272.29530938,0.0002065,2]
[349228756,1737048633123,-151.0,0.00020668,2]
[349228757,1737048633134,-505.01474,0.00020668,2]
[349228758,1737048633144,-505.01474,0.00020668,2]
[349228759,1737048633154,-1126.76388,0.00020668,2]
[349228760,1737048633164,-1126.76388,0.00020668,2]
[349228761,1737048633174,-632.46,0.00020674,3]
[349228762,1737048633337,-1349.62,0.00020684,3]
[349228763,1737048633348,-500.0,0.00020684,3]
[349228764,1737048633361,-386.738172,0.00020685,2]
[349228765,1737048633372,-151.0,0.00020727,2]
[349228766,1737048633382,-151.570366,0.00020727,2]
[349228767,1737048633392,-151.0,0.00020727,2]
[349228768,1737048633402,-151.0,0.00020727,2]
[349228769,1737048633412,-2403.910455,0.00020727,2]
[349228770,1737048633421,-2403.910455,0.00020727,2]
[349228771,1737048633431,-151.710515,0.00020727,2]
[349228772,1737048633442,-305.347585,0.00020727,2]
[349228773,1737048633452,-305.347585,0.00020727,2]
[349228774,1737048633461,-344.399519,0.00020727,2]
[349228775,1737048633470,-344.399519,0.00020727,2]
[349228776,1737048633481,-4326.26607089,0.00020728,2]
[349228777,1737048633491,-241.36847462,0.00020756,3]
[349228778,1737048633501,-386.738172,0.00020767,2]
[349228779,1737048633510,-632.46,0.00020811,3]
[349228780,1737048633521,-150.02,0.00020821,2]
[349228781,1737048633530,-150.02,0.00020821,2]
[349228782,1737048633539,-500.0,0.00020821,2]
[349228783,1737048633548,-500.0,0.00020821,2]
[349228784,1737048633558,-500.0,0.00020821,2]
[349228785,1737048633567,-150.02,0.00020821,2]
[349228786,1737048633577,-150.02,0.00020821,2]
[349228787,1737048633586,-299.77,0.00020821,2]
[349228788,1737048633595,-1349.62,0.00020821,3]
[349228789,1737048633606,-500.0,0.00020821,3]
[349228790,1737048633615,-151.0,0.00020849,2]
[349228791,1737048633624,-151.0,0.00020849,2]
[349228792,1737048633633,-386.738172,0.00020849,2]
[349228793,1737048633642,-6396.69098845,0.00020862,5]
[349228794,1737048633652,-932.53215082,0.00020862,5]
[349228795,1737048633661,-151.0,0.00020864,2]
[349228796,1737048633671,-151.0,0.00020864,2]
[349228797,1737048633680,-217.351092,0.00020864,2]
[349228798,1737048633689,-217.351092,0.00020864,2]
[349228799,1737048633698,-151.0,0.00020864,2]
[349228800,1737048633708,-385.677598,0.00020864,2]
[349228801,1737048633718,-385.677598,0.00020864,2]
[349228802,1737048633727,-151.0,0.00020864,2]
[349228803,1737048633737,-151.0,0.00020864,2]
[349228804,1737048633747,-385.677598,0.00020864,2]
[349228805,1737048633757,-385.677598,0.00020864,2]
[349228806,1737048633767,-151.0,0.00020864,2]
[349228807,1737048633776,-164.338008,0.00020864,2]
[349228808,1737048633786,-400.113715,0.00020865,2]
[349228809,1737048633796,-400.113715,0.00020865,2]
[349228810,1737048633805,-151.0,0.00020865,2]
[349228811,1737048633814,-151.0,0.00020865,2]
[349228812,1737048633823,-4326.26607089,0.00020866,2]
[349228813,1737048633832,-488.114,0.00020899,2]
[349228814,1737048633842,-395.0,0.00020899,2]
[349228815,1737048633852,-183.838,0.00020899,2]
[349228816,1737048633861,-150.0,0.00020899,2]
[349228817,1737048633871,-386.738172,0.00020932,2]
[349228818,1737048633880,-632.46,0.00020948,3]
[349228819,1737048633889,-151.0,0.00020958,2]
[349228820,1737048633898,-151.0,0.00020958,2]
[349228821,1737048633907,-153.1878,0.00020958,2]
[349228822,1737048633917,-286.630904,0.00020958,2]
[349228823,1737048633927,-286.630904,0.00020958,2]
[349228824,1737048633937,-151.0,0.00020958,2]
[349228825,1737048633946,-151.0,0.00020958,2]
[349228826,1737048633956,-295.653339,0.00020958,2]
[349228827,1737048633965,-295.653339,0.00020958,2]
[349228828,1737048633975,-752.398665,0.00020958,2]
[349228829,1737048633984,-752.398665,0.00020958,2]
[349228830,1737048633993,-505.01474,0.00020958,2]
[349228831,1737048634003,-505.01474,0.00020958,2]
[349228832,1737048634013,-1126.76388,0.00020958,2]
[349228833,1737048634022,-1126.76388,0.00020958,2]
[349228834,1737048634032,-151.0,0.00020958,2]
[349228835,1737048634042,-151.0,0.00020958,2]
[349228836,1737048634052,-217.351092,0.00020958,2]
[349228837,1737048634061,-217.351092,0.00020958,2]
[349228838,1737048634071,-151.0,0.00020958,2]
[349228839,1737048634081,-1349.62,0.00020958,3]
[349228840,1737048634090,-500.0,0.00020958,3]
[349228841,1737048634100,-249.93635299,0.00020982,2]
[349228842,1737048634111,-9030.2491594,0.00021,2]
[349228843,1737048634121,-1000.0,0.00021,21]
[349228844,1737048634131,-1000.0,0.00021,3]
[349228845,1737048634141,-150.0,0.00021,2]
[349228846,1737048634151,-151.0,0.00021,2]
[349228847,1737048634161,-151.0,0.00021,2]
[349228848,1737048634171,-151.0,0.00021,2]
[349228849,1737048634180,-151.0,0.00021,2]
[349228850,1737048634190,-151.0,0.00021,2]
[349228851,1737048634200,-264.44047,0.00021,2]
[349228852,1737048634213,-151.0,0.00021,2]
[349228853,1737048634224,-151.0,0.00021,2]
[349228854,1737048634235,-151.0,0.00021,2]
[349228855,1737048634245,-151.0,0.00021,2]
[349228856,1737048634255,-2403.910455,0.00021,2]
[349228857,1737048634266,-2403.910455,0.00021,2]
[349228858,1737048634276,-305.347585,0.00021,2]
[349228859,1737048634286,-305.347585,0.00021,2]
[349228860,1737048634296,-1040.271276,0.00021,2]
[349228861,1737048634306,-1040.271276,0.00021,2]
[349228862,1737048634316,-344.399519,0.00021,2]
[349228863,1737048634326,-344.399519,0.00021,2]
[349228864,1737048634336,-2475.91155158,0.00021,2]
[349228865,1737048634346,-17353.25548468,0.00021,2]
[349228866,1737048634356,-385.677598,0.00021,2]
[349228867,1737048634366,-151.0,0.00021,2]
[349228868,1737048634376,-385.677598,0.00021,2]
[349228869,1737048634385,-4326.26607089,0.00021003,2]
[349228870,1737048634395,-151.0,0.00021004,2]
[349228871,1737048634405,-400.113715,0.00021004,2]
[349228872,1737048634414,-400.113715,0.00021004,2]
[349228873,1737048634423,-151.0,0.00021004,2]
[349228874,1737048634433,-151.0,0.00021004,2]
[349228875,1737048634446,-386.738172,0.00021014,2]
[349228876,1737048634457,-632.46,0.00021085,3]
[349228877,1737048634467,-150.02,0.00021095,2]
[349228878,1737048634479,-299.59,0.00021095,2]
[349228879,1737048634489,-500.0,0.00021095,2]
[349228880,1737048634499,-500.0,0.00021095,2]
[349228881,1737048634508,-500.0,0.00021095,2]
[349228882,1737048634517,-299.68,0.00021095,2]
[349228883,1737048634528,-299.68,0.00021095,2]
[349228884,1737048634538,-151.0,0.00021095,2]
[349228885,1737048634547,-286.630904,0.00021095,2]
[349228886,1737048634557,-286.630904,0.00021095,2]
[349228887,1737048634567,-151.0,0.00021095,2]
[349228888,1737048634576,-151.0,0.00021095,2]
[349228889,1737048634587,-295.653339,0.00021095,2]
[349228890,1737048634596,-295.653339,0.00021095,2]
[349228891,1737048634607,-752.398665,0.00021095,2]
[349228892,1737048634617,-752.398665,0.00021095,2]
[349228893,1737048634626,-505.01474,0.00021095,2]
[349228894,1737048634636,-505.01474,0.00021095,2]
[349228895,1737048634645,-1126.76388,0.00021095,2]
[349228896,1737048634655,-1126.76388,0.00021095,2]
[349228897,1737048634665,-151.0,0.00021095,2]
[349228898,1737048634674,-153.015441,0.00021095,2]
[349228899,1737048634684,-217.351092,0.00021095,2]
[349228900,1737048634694,-217.351092,0.00021095,2]
[349228901,1737048634703,-151.0,0.00021095,2]
[349228902,1737048634714,-1349.62,0.00021095,3]
[349228903,1737048634723,-500.0,0.00021095,3]
[349228904,1737048634733,-386.738172,0.00021096,2]
[349228905,1737048634742,-151.0,0.00021141,2]
[349228906,1737048634751,-151.0,0.00021141,2]
[349228907,1737048634760,-151.0,0.00021141,2]
[349228908,1737048634770,-151.0,0.00021141,2]
[349228909,1737048634779,-2403.910455,0.00021141,2]
[349228910,1737048634788,-2403.910455,0.00021141,2]
[349228911,1737048634799,-305.347585,0.00021141,2]
[349228912,1737048634809,-305.347585,0.00021141,2]
[349228913,1737048634818,-4326.26607089,0.00021141,2]
[349228914,1737048634827,-344.399519,0.00021152,2]
[349228915,1737048634836,-344.399519,0.00021152,2]
[349228916,1737048634845,-151.0,0.000212,2]
[349228917,1737048634857,-151.0,0.000212,2]
[349228918,1737048634866,-271.96128711,0.00021215,2]
[349228919,1737048634875,-632.46,0.00021222,3]
[349228920,1737048634884,-151.0,0.00021232,2]
[349228921,1737048634893,-151.0,0.00021232,2]
[349228922,1737048634903,-1040.271276,0.00021232,2]
[349228923,1737048634913,-1040.271276,0.00021232,2]